bitfinex/quotes_ETHUSD_20250808
["timestamp","ask_amount","ask_price","bid_price","bid_amount"]
[1754638186569,27.93438712,3930.9,3930.2,3.0]
[1754638186792,2.54432783,3930.4,3930.2,3.0]
[1754638187011,3.8912,3931.0,3930.1,2.7340995]
[1754638187215,3.47601015,3930.3,3930.1,2.7340995]
[1754638187374,3.892,3930.9,3930.1,2.7340995]
[1754638187575,2.54439977,3930.2,3930.1,3.2840995]
[1754638188306,2.54428931,3930.4,3930.1,3.2840995]
[1754638188523,2.54439977,3930.2,3930.1,3.2840995]
[1754638188975,2.54439977,3930.2,3930.1,2.7340995]
[1754638189402,10.0,3930.7,3930.1,2.7340995]
[1754638189612,2.54439977,3930.2,3930.1,2.7340995]
[1754638190098,10.0,3930.7,3930.1,2.7340995]
[1754638190298,40.0,3930.8,3930.2,0.55]
[1754638190591,20.25229222,3930.8,3930.2,0.55]
[1754638190798,28.20570931,3930.8,3930.2,0.55]
[1754638191001,2.54432154,3930.4,3930.2,0.55]
[1754638191203,32.54433503,3930.3,3930.1,0.55]
[1754638191515,4.30262592,3930.9,3930.1,0.55]
[1754638191717,2.54439117,3930.3,3930.1,0.55]
[1754638191888,2.54423385,3930.5,3930.1,0.55]
[1754638191889,2.54428439,3930.4,3930.1,0.55]
[1754638192089,22.90844724,3930.3,3930.1,0.55]
[1754638192310,2.54414609,3930.6,3930.1,0.55]
[1754638192311,2.54428781,3930.4,3930.1,0.55]
[1754638192507,26.86448239,3930.3,3930.1,0.55]
[1754638192696,30.0,3930.3,3930.1,0.55]
[1754638194300,30.0,3930.4,3930.1,0.55]
[1754638194499,27.525344,3930.4,3930.1,0.55]
[1754638194842,30.06968243,3930.3,3930.1,0.55]
[1754638195018,2.54433843,3930.3,3930.1,0.55]
[1754638195188,2.54432252,3930.4,3930.1,0.55]
[1754638195388,19.47655487,3930.3,3930.2,0.54933749]
[1754638195587,2.54429296,3930.4,3930.2,0.54933749]
[1754638195917,2.54429296,3930.4,3930.1,0.55]
[1754638195918,16.932997,3930.3,3930.0,0.55]
[1754638196222,2.54388196,3931.0,3930.1,0.54933421]
[1754638196400,2.54433503,3930.3,3930.2,0.54933421]
[1754638196597,10.94697903,3930.3,3930.2,0.54933421]
[1754638196913,7.50526903,3930.3,3930.2,0.54933421]
[1754638197118,7.50526903,3930.3,3930.2,0.24340398]
[1754638197418,7.50446903,3930.3,3930.2,0.24340398]
[1754638197610,7.50366903,3930.3,3930.2,0.24340398]
[1754638198010,2.54446451,3930.1,3930.0,4.442]
[1754638198383,3.892,3930.6,3930.0,4.442]
[1754638198601,2.54438714,3930.3,3929.9,0.001]
[1754638198806,2.54452926,3930.0,3929.9,0.001]
[1754638199617,32.54452926,3930.0,3929.9,0.001]
[1754638200232,40.43552926,3930.0,3929.9,0.001]
[1754638201331,4.0,3930.0,3929.9,0.001]
[1754638201517,6.54372926,3930.0,3929.9,2.3234]
[1754638202035,6.54372926,3930.0,3929.9,2.8734]
[1754638202421,2.5442703,3930.4,3930.0,0.55]
[1754638202627,30.0,3930.3,3930.2,118.23680396]
[1754638202930,32.54433503,3930.3,3930.2,118.23680396]
[1754638203131,6.4362703,3930.4,3930.2,118.23680396]
[1754638203132,3.892,3930.4,3930.2,111.14716968]
[1754638203325,32.54353503,3930.3,3930.2,103.37144176]
[1754638203528,2.54433503,3930.3,3930.2,105.22134176]
[1754638203724,2.54420557,3930.5,3930.2,99.27519688]
[1754638203944,2.54433503,3930.3,3930.2,97.42529688]
[1754638204437,2.54420557,3930.5,3930.2,97.42529688]
[1754638204619,2.54420557,3930.5,3930.4,61.05493551]
[1754638204812,36.43620557,3930.5,3930.4,61.05493551]
[1754638205137,36.70421743,3930.5,3930.4,16.18984304]
[1754638205642,96.70421743,3930.5,3930.4,15.30267366]
[1754638205840,96.70421743,3930.5,3929.8,4.80094814]
[1754638205841,2.54439977,3930.2,3929.7,4.80094814]
[1754638206039,2.54465876,3929.8,3929.6,4.80094814]
[1754638206209,36.43672351,3929.7,3929.6,3.88435964]
[1754638206404,46.81072351,3929.7,3929.6,3.2006321]
[1754638206831,46.81072351,3929.7,3929.6,2.29476104]
[1754638207030,2.54478827,3929.6,3929.4,1.06665417]
[1754638207262,16.43685303,3929.5,3929.4,1.06665417]
[1754638207459,40.43685303,3929.5,3929.4,1.06665417]
[1754638207742,2.54491779,3929.4,3929.3,28.79198351]
[1754638207948,32.54491779,3929.4,3929.3,28.79198351]
[1754638208617,36.54491779,3929.4,3929.3,28.79198351]
[1754638209743,36.54491779,3929.4,3929.3,15.99599084]
[1754638210312,36.54491779,3929.4,3929.3,16.54351518]
[1754638210852,36.54491779,3929.4,3929.3,34.79665329]
[1754638211052,35.82632548,3929.4,3929.3,37.11905329]
[1754638211353,6.43611779,3929.4,3929.3,37.11905329]
[1754638211513,2.54491779,3929.4,3929.3,37.11905329]
[1754638211712,3.892,3929.5,3929.3,37.11905329]
[1754638212018,6.43685303,3929.5,3929.4,2.86992434]
[1754638212235,6.19758659,3929.5,3929.4,2.86992434]
[1754638213311,10.19758659,3929.5,3929.4,2.86992434]
[1754638214439,3.892,3929.5,3929.4,2.39742434]
[1754638214740,36.43685303,3929.5,3929.4,0.54752434]
[1754638214945,66.43685303,3929.5,3929.4,0.54752434]
[1754638215416,59.61775016,3929.5,3929.4,0.54752434]
[1754638215611,66.43685303,3929.5,3929.4,0.54752434]
[1754638215925,66.43685303,3929.5,3929.4,2.95872434]
[1754638216442,66.17343503,3929.5,3929.4,2.95872434]
[1754638216812,40.43685303,3929.5,3929.4,2.51892434]
[1754638217012,40.43685303,3929.5,3929.4,2.95872434]
[1754638217237,37.44329566,3929.5,3929.4,2.95872434]
[1754638217439,21.91253847,3929.5,3929.4,2.95872434]
[1754638217713,24.4573915,3929.5,3929.4,2.95872434]
[1754638218017,36.43685303,3929.5,3929.4,2.95872434]
[1754638218217,33.68263105,3929.5,3929.4,2.95872434]
[1754638218418,33.68263105,3929.5,3929.4,2.51892434]
[1754638219147,33.68263105,3929.5,3929.4,0.54752434]
[1754638219346,21.92712615,3929.5,3929.4,0.54752434]
[1754638219827,2.54491779,3929.4,3929.3,0.001]
[1754638220025,32.54491779,3929.4,3929.3,0.001]
[1754638220225,32.54491779,3929.4,3929.1,0.04]
[1754638220226,2.54504733,3929.2,3929.1,0.04]
[1754638220413,19.29722188,3929.2,3929.1,0.04]
[1754638220610,21.84226921,3929.2,3929.1,0.04]
[1754638220913,2.54504733,3929.2,3929.1,2.4512]
[1754638221223,32.54424733,3929.2,3929.1,2.4512]
[1754638221428,19.4614177,3929.2,3929.1,2.4512]
[1754638221628,22.00646503,3929.2,3929.1,2.4512]
[1754638222060,32.54504733,3929.2,3929.1,2.4512]
[1754638222758,32.54504733,3929.2,3929.1,0.04]
[1754638223258,25.65897823,3929.2,3929.1,0.04]
[1754638223430,6.43691779,3929.4,3929.1,2.4512]
[1754638223754,2.54504733,3929.2,3929.1,0.4798]
[1754638223960,32.54504733,3929.2,3929.1,0.4798]
[1754638224265,29.79074971,3929.2,3929.1,2.0114]
[1754638224557,2.54504733,3929.2,3929.1,2.0114]
[1754638224729,32.33579704,3929.2,3929.1,2.0114]
[1754638224927,32.33579704,3929.2,3929.1,2.4512]
[1754638225133,32.54504733,3929.2,3929.1,2.4512]
[1754638225347,25.66023457,3929.2,3929.1,2.4512]
[1754638225547,2.54504733,3929.2,3929.1,2.4512]
[1754638225717,32.54268333,3929.2,3929.1,2.0114]
[1754638226059,32.54268333,3929.2,3929.1,2.4512]
[1754638226347,36.43468333,3929.2,3929.1,0.04]
[1754638226646,19.21967833,3929.2,3929.1,0.04]
[1754638227231,16.674631,3929.2,3929.1,0.04]
[1754638227420,14.70544433,3929.2,3929.1,0.04]
[1754638229053,2.54524167,3928.9,3928.8,2.5214]
[1754638229238,3.892,3929.0,3928.7,0.001]
[1754638229439,2.54530645,3928.8,3928.7,0.001]
[1754638229642,32.51525352,3928.8,3928.7,0.001]
[1754638229846,32.51525352,3928.8,3928.7,1.9724]
[1754638230043,32.51525352,3928.8,3928.7,2.4122]
[1754638230352,29.76061376,3928.8,3928.7,2.4122]
[1754638230559,2.54530645,3928.8,3928.7,2.4122]
[1754638230772,32.54530645,3928.8,3928.7,2.4122]
[1754638231149,30.0,3928.8,3928.7,2.4122]
[1754638231356,0.69362506,3928.8,3928.7,2.4122]
[1754638231649,32.54530645,3928.8,3928.7,2.4122]
[1754638231859,32.54530645,3928.8,3928.7,2.96166282]
[1754638232155,30.0,3928.8,3928.7,2.96166282]
[1754638232450,30.0,3928.9,3928.7,2.96166282]
[1754638232757,32.54530645,3928.8,3928.7,2.4122]
[1754638232959,32.54530645,3928.8,3928.7,2.96171615]
[1754638233261,27.72548324,3928.8,3928.7,2.96171615]
[1754638233427,2.54530645,3928.8,3928.7,2.96171615]
[1754638233755,32.54530645,3928.8,3928.7,2.96171615]
[1754638234741,32.54530645,3928.8,3928.7,0.55051615]
[1754638234950,32.54530645,3928.8,3928.7,2.52191615]
[1754638235326,19.55799572,3928.8,3928.7,2.52191615]
[1754638235527,19.55719572,3928.8,3928.7,2.96171615]
[1754638235926,32.54530645,3928.8,3928.7,2.96171615]
[1754638236329,29.79072265,3928.8,3928.7,2.96226779]
[1754638236527,2.54530645,3928.8,3928.7,2.96226779]
[1754638236859,32.54530645,3928.8,3928.7,2.96226779]
[1754638237239,25.44945426,3928.8,3928.7,2.96226779]
[1754638237439,25.56822345,3928.8,3928.7,2.96226779]
[1754638237740,25.56822345,3928.8,3928.7,0.55106779]
[1754638237938,25.56822345,3928.8,3928.7,2.96226779]
[1754638238559,7.663752,3928.8,3928.7,2.96226779]
[1754638238762,10.20905845,3928.8,3928.7,2.96226779]
[1754638239331,3.892,3929.1,3928.7,2.96226779]
[1754638239536,2.54524167,3928.9,3928.8,2.96126779]
[1754638239834,32.54524167,3928.9,3928.8,2.96126779]
[1754638240369,30.0,3928.9,3928.8,3.51126779]
[1754638240668,32.54524167,3928.9,3928.8,3.51126779]
[1754638241366,14.94698831,3928.9,3928.8,3.51126779]
[1754638241564,7.58136657,3928.9,3928.8,3.51126779]
[1754638242081,32.54524167,3928.9,3928.8,3.51126779]
[1754638242247,20.35931726,3928.9,3928.8,3.51126779]
[1754638242453,2.54524167,3928.9,3928.8,3.51126779]
[1754638242745,2.54524167,3928.9,3928.8,7.40226779]
[1754638243358,8.2342862,3928.9,3928.8,7.40226779]
[1754638243673,32.54524167,3928.9,3928.8,7.40226779]
[1754638243844,2.54524167,3928.9,3928.8,7.40226779]
[1754638244032,32.54524167,3928.9,3928.8,7.40226779]
[1754638244359,30.0,3928.9,3928.8,7.40226779]
[1754638244529,14.64107043,3929.1,3928.9,0.55]
[1754638244730,2.96210998,3929.2,3929.1,0.55]
[1754638244936,24.96413998,3929.2,3929.1,3.43386779]
[1754638245138,27.96413998,3929.2,3929.1,3.43386779]
[1754638245479,10.71316486,3929.2,3929.1,3.43386779]
[1754638245663,10.713165,3929.2,3929.1,3.43386779]
[1754638245869,10.713165,3929.4,3929.1,3.43386779]
[1754638246043,10.713165,3929.4,3929.2,2.88386779]
[1754638246245,0.41380387,3929.5,3929.4,0.55]
[1754638246444,0.41380387,3929.5,3929.4,7.32486779]
[1754638247253,10.264,3930.3,3929.4,3.43386779]
[1754638247579,10.264,3930.3,3930.1,111.31078174]
[1754638247580,13.54769958,3930.2,3930.1,111.31078174]
[1754638247735,13.81231403,3930.2,3930.1,99.50456459]
[1754638248082,13.81231403,3930.2,3930.1,98.07399893]
[1754638248279,13.81364844,3930.2,3930.1,93.49330833]
[1754638248443,13.81364844,3930.2,3930.1,93.47890831]
[1754638248784,13.81364844,3930.2,3930.1,88.70127846]
[1754638248938,13.81364844,3930.2,3930.1,86.97296207]
[1754638249138,13.81364844,3930.2,3930.1,86.2250164]
[1754638249438,73.81364844,3930.2,3930.1,55.07632027]
[1754638249772,73.81364844,3930.2,3930.1,36.47435772]
[1754638250070,73.54903399,3930.2,3930.1,17.18299158]
[1754638251038,73.55103399,3930.2,3930.1,17.18299158]
[1754638252464,73.55103399,3930.2,3930.1,3.42559329]
[1754638252664,73.26089918,3930.2,3930.1,3.42559329]
[1754638253641,2.54465876,3929.8,3929.7,86.33617095]
[1754638253843,19.63182376,3929.8,3929.7,92.84020804]
[1754638254277,23.52182376,3929.8,3929.7,85.87760427]
[1754638254471,23.52182376,3929.8,3929.7,82.67112085]
[1754638254776,23.52182376,3929.8,3929.7,78.09043025]
[1754638254976,23.52182376,3929.8,3929.7,62.97496347]
[1754638255459,83.52182376,3929.8,3929.7,62.97496347]
[1754638255668,83.52182376,3929.8,3929.7,31.82626734]
[1754638256076,83.52182376,3929.8,3929.7,33.70456734]
[1754638256268,79.63182376,3929.8,3929.7,34.16006734]
[1754638256468,8.91865876,3929.8,3929.7,34.16006734]
[1754638256649,19.63182376,3929.8,3929.7,34.16006734]
[1754638257157,19.63182376,3929.8,3929.7,48.90983432]
[1754638257359,19.63182376,3929.8,3929.7,54.86423448]
[1754638257554,23.52182376,3929.8,3929.7,86.01293061]
[1754638257755,23.52315817,3929.8,3929.7,76.71653765]
[1754638257984,23.52315817,3929.8,3929.7,68.92936363]
[1754638258578,83.52315817,3929.8,3929.7,62.97496347]
[1754638259285,83.52315817,3929.8,3929.7,47.12375662]
[1754638259579,83.52315817,3929.8,3929.7,26.96871795]
[1754638259784,83.52182376,3929.8,3929.7,12.5494672]
[1754638260281,84.15776495,3929.8,3929.7,12.5494672]
[1754638260842,85.40535094,3929.8,3929.7,12.5494672]
[1754638261044,85.53847235,3929.8,3929.7,12.5494672]
[1754638261280,85.53847235,3929.8,3929.7,11.46356018]
[1754638262546,74.82530735,3929.8,3929.7,11.46356018]
[1754638262777,2.54485303,3929.5,3929.4,34.11624612]
[1754638262945,17.14801803,3929.5,3929.4,34.11624612]
[1754638263279,18.3915194,3929.5,3929.4,34.11624612]
[1754638263458,18.3915194,3929.5,3929.4,19.45861706]
[1754638263872,18.3915194,3929.5,3929.4,3.42559329]
[1754638264067,18.3915194,3929.5,3929.3,11.46356018]
[1754638264068,2.54498256,3929.3,3929.1,15.57403346]
[1754638264279,23.52421233,3929.2,3929.1,9.16106662]
[1754638264459,24.92777385,3929.2,3929.1,9.16106662]
[1754638265159,2.54530645,3928.8,3928.7,0.001]
[1754638265360,23.52447145,3928.8,3928.7,0.551]
[1754638265561,24.83173134,3928.8,3928.7,0.4565]
[1754638265945,24.83173134,3928.8,3928.7,2.3348]
[1754638267588,20.94173134,3928.8,3928.7,2.3348]
[1754638267948,20.94173134,3928.8,3928.7,1.21899875]
[1754638270979,20.94173134,3928.8,3928.6,92.93623323]
[1754638270980,13.25853624,3928.7,3928.6,92.93623323]
[1754638271289,13.25853624,3928.7,3928.6,59.10509006]
[1754638271290,18.47809957,3928.7,3928.6,59.10509006]
[1754638271486,18.47809957,3928.7,3928.6,59.56059006]
[1754638271787,18.47809957,3928.7,3928.6,58.41104721]
[1754638271950,14.58943398,3928.7,3928.6,46.28074385]
[1754638272349,14.58943398,3928.7,3928.6,33.45721843]
[1754638272554,14.58943398,3928.7,3928.6,18.80694575]
[1754638272967,12.04406274,3928.7,3928.6,6.2238]
[1754638273163,10.66522336,3928.7,3928.6,9.61296363]
[1754638273470,10.665224,3928.8,3928.7,0.55]
[1754638273655,13.21053045,3928.8,3928.7,42.84973323]
[1754638273861,13.21053045,3928.8,3928.7,41.16104525]
[1754638274184,13.21053045,3928.8,3928.7,37.95989493]
[1754638274559,13.21053045,3928.8,3928.7,33.38682305]
[1754638274560,13.21186486,3928.8,3928.7,33.38682305]
[1754638274968,13.21186486,3928.8,3928.7,27.4384313]
[1754638275489,13.21186486,3928.8,3928.7,29.3122313]
[1754638275691,2.54537124,3928.7,3928.6,75.72305245]
[1754638276001,13.21059524,3928.7,3928.6,82.03554067]
[1754638276290,13.21059524,3928.7,3928.6,98.05584403]
[1754638276494,13.34373308,3928.7,3928.6,98.05584403]
[1754638278196,13.34373308,3928.7,3928.6,123.46277103]
[1754638279591,13.34373308,3928.7,3928.6,113.95207371]
[1754638279782,13.34506749,3928.7,3928.6,81.29629209]
[1754638279967,13.34506749,3928.7,3928.6,72.27972031]
[1754638280166,13.34506749,3928.7,3928.6,51.68634507]
[1754638280700,13.34506749,3928.7,3928.6,40.05719968]
[1754638280897,17.23406749,3928.7,3928.6,40.05719968]
[1754638281079,17.5242023,3928.7,3928.6,40.05719968]
[1754638281486,77.5242023,3928.7,3928.6,40.05719968]
[1754638281972,77.5242023,3928.7,3928.6,25.406927]
[1754638282898,78.6179023,3928.7,3928.6,25.406927]
[1754638283070,77.52286789,3928.7,3928.6,25.406927]
[1754638283270,77.5242023,3928.7,3928.6,12.82378125]
[1754638283484,77.9586023,3928.7,3928.6,12.82378125]
[1754638283779,77.5242023,3928.7,3928.6,12.82378125]
[1754638284180,73.34506749,3928.7,3928.6,12.82378125]
[1754638284381,73.34506749,3928.7,3928.4,0.551]
[1754638284382,2.54550082,3928.5,3928.4,0.551]
[1754638284598,13.21072482,3928.5,3928.4,4.44]
[1754638284937,13.21072482,3928.5,3928.4,6.3138]
[1754638285083,13.21072482,3928.5,3928.4,6.7629]
[1754638285277,13.21072482,3928.5,3928.4,6.74718269]
[1754638287006,13.21072482,3928.5,3928.4,11.56285604]
[1754638287306,13.21072482,3928.5,3928.4,22.99893405]
[1754638287602,13.21072482,3928.5,3928.4,27.57200593]
[1754638288111,6.376,3928.6,3928.4,47.92222813]
[1754638288275,6.376,3928.6,3928.5,72.57816252]
[1754638288603,0.13313784,3928.7,3928.6,0.55]
[1754638288814,30.13313784,3928.7,3928.6,4.98828288]
[1754638288975,26.00074493,3928.7,3928.6,7.31118288]
[1754638289176,30.0,3928.8,3928.6,7.31118288]
[1754638289377,63.89033441,3929.6,3928.8,0.55]
[1754638289617,30.0,3929.5,3929.0,0.55]
[1754638289814,30.0,3929.5,3929.1,3.889]
[1754638289983,32.54486007,3929.5,3929.1,3.889]
[1754638290179,30.0,3929.4,3929.3,0.55]
[1754638290487,0.00133441,3929.6,3929.3,6.7619]
[1754638290488,30.0,3929.5,3929.3,6.7619]
[1754638290687,30.0,3929.5,3929.3,4.439]
[1754638290908,30.0,3929.5,3929.4,2.8729]
[1754638291110,30.0,3929.5,3929.4,24.2594678]
[1754638291415,30.0,3929.5,3929.4,38.91257946]
[1754638291907,0.64705696,3929.6,3929.5,0.55]
[1754638292229,30.0,3929.6,3929.5,7.30603708]
[1754638292380,2.5448095,3929.6,3929.5,4.43861855]
[1754638292575,39.20994431,3929.6,3929.5,77.69962338]
[1754638292895,39.20994431,3929.6,3929.5,69.72059396]
[1754638293081,29.5697128,3929.6,3929.5,69.72059396]
[1754638293281,29.5697128,3929.6,3929.5,65.14195866]
[1754638293282,38.4895223,3929.6,3929.5,65.14195866]
[1754638293876,38.4895223,3929.6,3929.5,59.18973277]
[1754638294088,23.11415934,3929.6,3929.5,58.74063277]
[1754638294295,25.65894761,3929.6,3929.5,56.86683277]
[1754638294625,25.65894761,3929.6,3929.5,20.46284211]
[1754638294785,7.7555755,3929.6,3929.5,20.46284211]
[1754638294987,7.7555755,3929.6,3929.5,96.19979365]
[1754638295181,32.54478827,3929.6,3929.5,96.19979365]
[1754638295583,38.91978827,3929.6,3929.5,96.19979365]
[1754638295814,45.97978827,3929.6,3929.5,96.19979365]
[1754638296412,45.97978827,3929.6,3929.5,92.31179365]
[1754638296614,45.97978827,3929.6,3929.5,60.8641363]
[1754638296778,45.97978827,3929.6,3929.5,56.48940661]
[1754638297115,4.36817399,3929.5,3929.4,14.06795089]
[1754638297318,2.54511211,3929.1,3929.0,11.3392688]
[1754638297614,43.90381211,3929.1,3929.0,11.3392688]
[1754638297813,42.81011211,3929.1,3929.0,11.3392688]
[1754638298715,42.81011211,3929.1,3928.9,9.15112912]
[1754638298716,2.54517688,3929.0,3928.9,9.15112912]
[1754638299014,2.54550082,3928.5,3928.4,3.888]
[1754638299187,32.54556562,3928.4,3928.3,19.90759012]
[1754638299383,32.54556562,3928.4,3928.3,20.45670814]
[1754638300113,32.54556562,3928.4,3928.3,23.79714822]
[1754638300483,36.43356562,3928.4,3928.3,23.79714822]
[1754638300886,44.85188007,3928.4,3928.3,23.79714822]
[1754638301116,2.54576003,3928.1,3928.0,0.001]
[1754638301414,42.81176003,3928.1,3928.0,0.001]
[1754638302298,12.81176003,3928.1,3928.0,0.001]
[1754638302499,102.81176003,3928.1,3928.0,0.001]
[1754638302922,2.54582484,3928.0,3927.9,10.05190961]
[1754638303107,30.0,3928.0,3927.9,0.001]
[1754638303308,30.0,3928.0,3927.9,2.2787]
[1754638303510,33.888,3928.0,3927.9,2.2787]
[1754638303730,36.43382484,3928.0,3927.9,0.001]
[1754638304299,2.54608412,3927.6,3927.5,37.96691046]
[1754638304522,49.87208412,3927.6,3927.5,37.96691046]
[1754638304926,49.87208412,3927.6,3927.5,41.03605755]
[1754638305128,47.326,3927.6,3927.5,40.48745484]
[1754638305404,47.326,3927.6,3927.5,46.10765432]
[1754638305629,47.326,3927.6,3927.5,50.68029874]
[1754638306203,49.87208412,3927.6,3927.5,50.68029874]
[1754638306798,49.87208412,3927.6,3927.5,48.80889874]
[1754638306998,49.87208412,3927.6,3927.5,58.85980835]
[1754638307226,49.87208412,3927.6,3927.5,57.46900008]
[1754638307402,49.87208412,3927.6,3927.5,46.6270118]
[1754638307602,109.87208412,3927.6,3927.5,46.6270118]
[1754638307822,109.87208412,3927.6,3927.5,40.68094424]
[1754638308031,109.87208412,3927.6,3927.5,34.75005508]
[1754638308215,109.87208412,3927.6,3927.5,19.20306405]
[1754638308412,112.87208412,3927.6,3927.5,17.74865104]
[1754638309104,112.87208412,3927.6,3927.4,0.001]
[1754638309337,32.54614894,3927.5,3927.4,1.8724]
[1754638310939,32.54614894,3927.5,3927.4,0.001]
[1754638311623,92.54614894,3927.5,3927.4,0.001]
[1754638311933,99.60614894,3927.5,3927.4,0.001]
[1754638313005,99.60614894,3927.5,3927.4,1.8724]
[1754638313511,69.60614894,3927.5,3927.4,1.8724]
[1754638313717,99.60614894,3927.5,3927.4,1.8724]
[1754638315037,103.49514894,3927.5,3927.4,0.001]
[1754638317841,103.49514894,3927.5,3927.0,20.81209991]
[1754638317842,2.54640829,3927.1,3927.0,16.3730533]
[1754638318041,42.81440829,3927.1,3927.0,16.9203485]
[1754638318341,40.268,3927.1,3927.0,8.36779079]
[1754638318546,40.268,3927.1,3927.0,6.07966537]
[1754638318860,40.268,3927.1,3927.0,1.8714]
[1754638319147,42.81440829,3927.1,3927.0,1.8714]
[1754638319328,2.54647313,3927.0,3926.9,23.54191377]
[1754638319518,32.54647313,3927.0,3926.9,24.08910304]
[1754638319718,32.54647313,3927.0,3926.9,18.32012497]
[1754638319919,32.54647313,3927.0,3926.9,16.44872497]
[1754638320136,32.54647313,3927.0,3926.9,9.17385828]
[1754638320316,36.43547313,3927.0,3926.9,4.73601677]
[1754638321027,36.43547313,3927.0,3926.9,0.69658051]
[1754638321223,36.43547313,3927.0,3926.9,13.1381363]
[1754638321224,37.06,3927.0,3926.9,13.1381363]
[1754638321439,37.06,3927.0,3926.9,16.78674877]
[1754638322333,38.35250868,3927.0,3926.9,13.29046669]
[1754638322519,26.63862663,3927.0,3926.9,4.43653769]
[1754638322721,1.29250868,3927.0,3926.9,0.54753769]
[1754638322921,27.69562368,3927.0,3926.9,0.54753769]
[1754638323551,27.69562368,3927.0,3926.9,2.70073769]
[1754638323749,28.3452975,3927.0,3926.9,3.25073769]
[1754638324131,27.05278882,3927.0,3926.9,3.25073769]
[1754638324529,2.54653798,3926.9,3926.7,3.0]
[1754638324740,28.94965298,3926.9,3926.7,3.0]
[1754638325058,26.403115,3926.7,3926.6,3.551]
[1754638325428,26.403115,3926.7,3926.5,3.02992102]
[1754638325657,26.403115,3926.7,3926.5,3.12992102]
[1754638325842,26.403115,3926.9,3926.5,3.12992102]
[1754638326346,3.889,3927.2,3926.5,3.12992102]
[1754638326546,26.403115,3927.1,3926.6,1.8744]
[1754638326746,3.889,3927.2,3927.1,23.33739858]
[1754638326930,30.292115,3927.2,3927.1,23.33739858]
[1754638327135,30.292115,3927.2,3927.1,17.84624598]
[1754638327331,32.83845845,3927.2,3927.1,17.84624598]
[1754638327560,34.55720591,3927.2,3927.1,13.27028547]
[1754638327759,36.37450591,3927.2,3927.1,13.27028547]
[1754638327948,36.37450591,3927.2,3927.1,7.32153681]
[1754638328146,36.37450591,3927.2,3927.1,6.77169982]
[1754638328356,35.12145845,3927.2,3927.1,6.77169982]
[1754638328554,95.12145845,3927.2,3927.1,6.77169982]
[1754638328755,96.90104345,3927.2,3927.0,5.94874866]
[1754638328960,30.0,3927.1,3927.0,22.16999115]
[1754638329156,26.99867681,3927.1,3927.0,13.61575602]
[1754638329561,26.99867681,3927.1,3927.0,15.48715602]
[1754638329727,33.889,3927.1,3927.0,15.48715602]
[1754638330471,33.889,3927.1,3927.0,11.00592904]
[1754638330627,3.889,3927.1,3927.0,11.00592904]
[1754638331160,33.889,3927.1,3927.0,11.00592904]
[1754638332475,23.30871925,3927.1,3927.0,5.70036278]
[1754638332662,25.85512754,3927.1,3927.0,9.13990427]
[1754638332858,33.889,3927.1,3927.0,9.13990427]
[1754638333044,31.82196102,3927.1,3927.0,6.19594618]
[1754638333358,29.50986103,3927.1,3927.0,1.8714]
[1754638333558,29.50986103,3927.1,3926.8,3.80333727]
[1754638333757,25.62086103,3927.0,3926.5,0.1]
[1754638333960,25.62086103,3927.0,3926.8,0.4325]
[1754638333961,6.379,3926.9,3926.8,0.4325]
[1754638334161,37.58266359,3926.9,3926.8,0.4325]
[1754638334663,37.58266359,3926.9,3926.6,0.60184843]
[1754638334970,30.0,3926.8,3926.6,0.60184843]
[1754638335132,24.39815985,3926.8,3926.6,0.60184843]
[1754638335765,24.39815985,3926.8,3926.7,1.9454]
[1754638336141,30.0,3926.8,3926.7,1.9454]
[1754638336542,30.0,3926.8,3926.7,2.4960165]
[1754638336742,30.0,3926.8,3926.7,0.5506165]
[1754638337137,30.0,3926.7,3926.5,3.889]
[1754638337493,28.62194281,3926.8,3926.5,3.889]
[1754638337664,10.268,3926.9,3926.5,3.889]
[1754638337836,30.0,3926.8,3926.5,3.889]
[1754638339260,30.0,3926.8,3926.5,4.9256]
[1754638339561,30.0,3926.8,3926.5,1.56645111]
[1754638339766,30.0,3926.8,3926.5,0.52985111]
[1754638340461,25.17681825,3926.8,3926.5,0.52985111]
[1754638340662,31.9623,3926.8,3926.5,0.52985111]
[1754638340865,30.0,3926.7,3926.4,3.888]
[1754638341033,1.25376624,3926.7,3926.4,3.888]
[1754638341242,23.10980704,3926.6,3926.4,3.888]
[1754638341442,23.10980704,3926.6,3926.5,1.7788]
[1754638341775,0.65445018,3927.1,3926.6,0.55]
[1754638342079,30.0,3927.0,3926.8,0.55]
[1754638342274,30.0,3927.0,3925.9,11.2703446]
[1754638342275,30.0,3927.0,3926.9,4.7149]
[1754638342481,0.65445018,3927.1,3927.0,0.55]
[1754638342643,30.0,3927.1,3927.0,1.8635]
[1754638342845,30.0,3927.6,3927.0,4.8635]
[1754638343046,0.62408606,3927.8,3927.2,0.55]
[1754638343377,0.19044003,3928.3,3927.6,0.55]
[1754638343583,0.002,3928.3,3928.2,6.50872252]
[1754638343878,0.002,3928.3,3928.2,13.32888569]
[1754638344382,0.002,3928.3,3928.2,12.01928569]
[1754638344694,30.002,3928.3,3928.2,7.438]
[1754638345296,27.24724285,3928.3,3928.2,6.83314359]
[1754638345461,30.0,3928.3,3928.2,2.3730148]
[1754638346381,30.0,3928.3,3928.2,3.4096148]
[1754638346799,31.20971097,3928.3,3928.2,3.88800125]
[1754638346965,0.65056053,3928.4,3928.2,0.47437929]
[1754638347287,0.1946675,3929.4,3928.2,0.47437929]
[1754638347576,30.0,3929.3,3928.4,0.55]
[1754638347882,30.0,3929.4,3928.5,3.888]
[1754638348084,30.0,3929.4,3929.3,14.83658652]
[1754638348378,30.0,3929.4,3929.3,8.89284379]
[1754638348379,35.4129,3929.4,3929.3,8.89284379]
[1754638348790,39.2999,3929.4,3929.3,4.32070117]
[1754638349158,39.2999,3929.4,3929.3,4.86817956]
[1754638349361,45.96178162,3929.4,3929.3,4.86817956]
[1754638349794,42.96178162,3929.4,3929.3,4.86817956]
[1754638350277,38.7879,3929.4,3929.3,4.86817956]
[1754638350472,42.6749,3929.4,3929.3,4.86817956]
[1754638350873,38.3373,3929.4,3929.3,4.86817956]
[1754638351076,30.0,3929.4,3929.3,4.86817956]
[1754638351485,32.4129,3929.4,3929.3,4.86817956]
[1754638351800,36.2999,3929.4,3929.3,4.86817956]
[1754638352798,42.6749,3929.4,3929.3,4.71355895]
[1754638353159,43.95409691,3929.4,3928.8,3.24904244]
[1754638353360,30.0,3929.3,3928.8,3.887]
[1754638353560,20.25509726,3929.3,3928.8,3.887]
[1754638353794,3.887,3929.3,3928.8,3.887]